bitfinex-derivatives/quotes_SOLF0:USTF0_20260220
["timestamp","ask_amount","ask_price","bid_price","bid_amount"]
[1771626421134,40.25709923,84.628,84.586,10.6432]
[1771626422033,40.27030243,84.639,84.552,10.89699486]
[1771626422730,40.27030243,84.659,84.57,9.59275495]
[1771626422932,40.27030243,84.649,84.56,10.89699486]
[1771626423126,40.28377168,84.629,84.553,10.89699486]
[1771626423331,40.28377168,84.619,84.563,10.6461]
[1771626423533,40.28377168,84.619,84.534,10.89699486]
[1771626423732,40.28377168,84.619,84.509,21.3057]
[1771626423733,40.28377168,84.609,84.532,10.89699486]
[1771626423932,40.28377168,84.609,84.533,10.89699486]
[1771626424133,40.28902489,84.623,84.532,10.89699486]
[1771626424329,40.28902489,84.623,84.55,9.59275495]
[1771626425735,40.28902489,84.623,84.571,10.645]
[1771626427539,40.16373868,84.619,84.562,10.6462]
[1771626428235,40.16373868,84.619,84.571,10.645]
[1771626429732,40.16212614,84.617,84.559,10.6465]
[1771626429934,3.58035503,84.59,84.559,10.6465]
[1771626437945,3.58068163,84.59,84.559,10.6465]
[1771626440342,40.24142527,84.619,84.561,10.89699486]
[1771626440548,40.24142527,84.609,84.553,10.89699486]
[1771626441249,40.24142527,84.609,84.554,10.89699486]
[1771626441540,40.24142527,84.609,84.555,10.89699486]
[1771626441744,40.24142527,84.609,84.566,10.6456]
[1771626442347,40.24142527,84.609,84.575,10.6445]
[1771626446450,40.24142527,84.609,84.563,10.89699486]
[1771626446955,40.22677478,84.599,84.56,10.89699486]
[1771626447345,40.22677478,84.599,84.562,10.89699486]
[1771626447753,40.22677478,84.599,84.564,10.6458]
[1771626449256,40.22677478,84.599,84.564,21.54279486]
[1771626450257,40.22677478,84.599,84.566,10.6457]
[1771626454854,16.93117546,84.579,84.549,11.04820637]
[1771626455055,35.55,84.641,84.542,14.62607953]
[1771626455056,3.58068163,84.6,84.542,14.62607953]
[1771626455257,3.58068163,84.6,84.541,14.62607953]
[1771626455453,10.93907768,84.623,84.562,10.6462]
[1771626455454,10.6404,84.609,84.562,10.6462]
[1771626455853,3.58068163,84.61,84.55,3.58068163]
[1771626456760,3.58068163,84.61,84.57,10.6451]
[1771626456951,25.8782408,84.609,84.57,10.6451]
[1771626458055,25.8782408,84.609,84.578,10.6442]
[1771626461162,3.58068163,84.62,84.578,10.6442]
[1771626461463,29.34269417,84.62,84.578,10.6442]
[1771626463060,29.34269417,84.62,84.585,10.6432]
[1771626463269,25.76201254,84.62,84.585,10.6432]
[1771626463764,25.76201254,84.62,84.57,3.58068163]
[1771626463765,29.34269417,84.62,84.575,10.6446]
[1771626464967,25.73376428,84.609,84.575,10.6446]
[1771626466660,25.73376428,84.609,84.565,14.62607953]
[1771626466856,25.73376428,84.609,84.481,165.7657]
[1771626466857,25.73376428,84.609,84.562,14.62607953]
[1771626467065,25.73376428,84.609,84.565,14.62607953]
[1771626467266,25.73376428,84.609,84.566,14.62607953]
[1771626468168,25.73376428,84.609,84.567,14.62607953]
[1771626468564,25.73376428,84.609,84.575,10.6445]
[1771626477176,10.6426,84.591,84.534,29.32551892]
[1771626477381,8.95461439,84.569,84.548,14.72731788]
[1771626477567,8.95461439,84.569,84.522,8.42118374]
[1771626477876,8.95461439,84.569,84.527,8.42118374]
[1771626478380,8.95461439,84.569,84.514,8.42118374]
[1771626478573,8.95461439,84.559,84.514,8.42118374]
[1771626480274,12.53529602,84.55,84.502,19.07488374]
[1771626480473,8.95461439,84.549,84.502,19.07488374]
[1771626480675,3.58068163,84.54,84.502,19.07488374]
[1771626481587,8.95461439,84.539,84.492,10.655]
[1771626481887,8.95461439,84.529,84.492,10.655]
[1771626482085,14.70634449,84.596,84.443,21.3224]
[1771626482086,8.95461439,84.549,84.493,8.42118374]
[1771626482382,3.58068163,84.54,84.5,10.6539]
[1771626485787,8.95461439,84.549,84.5,10.6539]
[1771626486883,11.06058364,84.593,84.451,452.91650551]
[1771626486884,8.96415983,84.568,84.511,9.24384217]
[1771626487086,3.58068163,84.57,84.521,9.02468379]
[1771626487389,3.58068163,84.58,84.521,9.02468379]
[1771626488288,12.69090337,84.58,84.521,9.02468379]
[1771626488691,12.69090337,84.58,84.53,9.34509672]
[1771626489692,12.69090337,84.58,84.534,10.6497]
[1771626489991,9.11022174,84.579,84.534,10.6497]
[1771626491395,9.11022174,84.579,84.537,9.34509672]
[1771626491597,3.58068163,84.59,84.537,9.34509672]
[1771626491797,9.11022174,84.579,84.537,9.34509672]
[1771626491994,9.11022174,84.579,84.538,9.34509672]
[1771626492498,9.11022174,84.579,84.541,9.34509672]
[1771626493796,3.58068163,84.6,84.557,9.34509672]
[1771626493994,9.11022174,84.599,84.557,9.34509672]
[1771626495903,9.11022174,84.599,84.558,9.34509672]
[1771626505912,9.11022174,84.599,84.559,10.6465]
[1771626506601,9.11022174,84.599,84.56,9.34509672]
[1771626507604,9.11022174,84.599,84.562,9.34509672]
[1771626508303,3.57945213,84.61,84.571,10.645]
[1771626508703,12.68967387,84.61,84.571,10.645]
[1771626508913,9.11022174,84.609,84.571,10.645]
[1771626511309,9.11022174,84.609,84.572,9.34509672]
[1771626511514,9.11022174,84.609,84.573,19.98979672]
[1771626512017,9.11022174,84.609,84.574,9.34509672]
[1771626512310,9.11022174,84.609,84.577,10.6443]
[1771626513717,9.11022174,84.628,84.58,19.98899672]
[1771626515019,9.11022174,84.628,84.581,9.34509672]
[1771626515812,9.11022174,84.626,84.581,9.34509672]
[1771626516218,12.68967387,84.62,84.581,9.34509672]
[1771626519020,11.11256268,84.619,84.581,9.34509672]
[1771626527824,11.11256268,84.629,84.592,10.76793495]
[1771626528329,3.57945213,84.61,84.576,10.76793495]
[1771626528531,11.11256268,84.609,84.576,10.76793495]
[1771626531122,3.57945213,84.61,84.578,10.76793495]
[1771626531518,3.57945213,84.61,84.528,14.61986348]
[1771626531519,11.11256268,84.599,84.561,10.76793495]
[1771626532829,11.11256268,84.599,84.563,10.76793495]
[1771626538425,3.57945213,84.6,84.563,10.76793495]
[1771626542234,3.57945213,84.61,84.567,10.76793495]
[1771626542637,3.57945213,84.61,84.57,10.76793495]
[1771626543042,11.11256268,84.639,84.591,10.76793495]
[1771626544742,11.11256268,84.639,84.595,10.76793495]
[1771626546436,3.57945213,84.63,84.595,10.76793495]
[1771626546637,11.11256268,84.626,84.573,21.41273495]
[1771626546842,11.11256268,84.619,84.574,10.76793495]
[1771626547339,15.66474572,84.61,84.574,10.76793495]
[1771626547736,3.57945213,84.6,84.562,12.63675891]
[1771626547938,3.57945213,84.59,84.547,12.63675891]
[1771626548334,3.57945213,84.59,84.551,10.6476]
[1771626548640,15.66474572,84.59,84.551,10.6476]
[1771626548833,12.08529359,84.589,84.551,10.6476]
[1771626549240,3.57945213,84.58,84.551,10.6476]
[1771626549842,12.08529359,84.589,84.551,10.6476]
[1771626550339,3.57945213,84.58,84.547,12.63675891]
[1771626550544,3.57945213,84.57,84.541,10.6488]
[1771626552039,15.66474572,84.57,84.534,12.63675891]
[1771626555049,12.08529359,84.569,84.534,12.63675891]
[1771626555248,12.08529359,84.569,84.525,11.03398472]
[1771626555249,3.57945213,84.56,84.525,11.03398472]
[1771626555546,3.57945213,84.56,84.521,12.63675891]
[1771626555750,15.66474572,84.56,84.525,10.6508]
[1771626555945,12.08529359,84.559,84.525,10.6508]
[1771626556646,12.08529359,84.559,84.521,12.63675891]
[1771626562957,12.08529359,84.559,84.522,10.6512]
[1771626563852,12.08529359,84.559,84.522,23.28795891]
[1771626564048,12.08529359,84.559,84.525,10.6508]
[1771626565347,11.81919094,84.559,84.525,10.6508]
[1771626574068,3.58308405,84.57,84.496,253.39554426]
[1771626574069,12.08529359,84.57,84.531,12.63675891]
[1771626574270,12.08529359,84.584,84.541,12.63675891]
[1771626575673,12.08529359,84.584,84.546,23.28495891]
[1771626578472,13.33764815,84.595,84.551,13.52771828]
[1771626579670,13.33764815,84.595,84.552,10.6474]
[1771626579874,13.33764815,84.595,84.553,13.52771828]
[1771626581681,13.33764815,84.595,84.554,10.6472]
[1771626587186,16.9207322,84.59,84.554,10.6472]
[1771626589290,13.33764815,84.569,84.523,11.001381]
[1771626589491,13.33764815,84.569,84.523,13.52771828]
[1771626590692,13.33764815,84.569,84.535,10.6496]
[1771626596491,13.33764815,84.569,84.523,24.17871828]
[1771626596896,13.33764815,84.569,84.524,13.52771828]
[1771626597898,13.33764815,84.569,84.526,10.6507]
[1771626598195,13.33764815,84.569,84.527,13.52771828]
[1771626600696,13.33764815,84.579,84.536,13.52771828]
[1771626600898,13.33764815,84.579,84.541,13.52771828]
[1771626601699,13.33764815,84.579,84.544,10.6484]
[1771626602499,13.33764815,84.579,84.533,10.6498]
[1771626602900,13.33764815,84.579,84.534,13.52771828]
[1771626605300,13.33764815,84.579,84.531,11.02998762]
[1771626605501,13.33764815,84.569,84.523,24.17871828]
[1771626605697,13.33764815,84.569,84.492,21.95779984]
[1771626605698,3.58308405,84.54,84.506,11.02998762]
[1771626605899,13.33764815,84.539,84.5,13.52771828]
[1771626606100,13.33764815,84.529,84.488,13.52771828]
[1771626607698,13.33764815,84.529,84.474,11.02998762]
[1771626607902,3.58308405,84.52,84.473,13.89004858]
[1771626608099,13.06292636,84.519,84.473,13.89004858]
[1771626608300,13.06292636,84.538,84.491,13.89004858]
[1771626609702,13.06292636,84.538,84.493,10.6548]
[1771626610505,13.06292636,84.529,84.479,13.89004858]
[1771626610706,13.06292636,84.519,84.466,13.89004858]
[1771626611105,13.06292636,84.509,84.466,13.89004858]
[1771626611498,3.58308405,84.5,84.466,13.89004858]
[1771626611698,3.58308405,84.5,84.46,10.659]
[1771626611699,13.06292636,84.499,84.46,10.659]
[1771626612007,13.06292636,84.499,84.417,21.95779984]
[1771626612008,3.58308405,84.49,84.439,13.89004858]
[1771626612312,13.06292636,84.489,84.439,13.89004858]
[1771626612508,3.58308405,84.48,84.431,11.0084333]
[1771626612713,165.6399,84.546,84.431,11.0084333]
[1771626612714,3.58308405,84.49,84.431,13.89004858]
[1771626612905,16.64601041,84.49,84.431,13.89004858]
[1771626613101,13.06292636,84.489,84.431,13.89004858]
[1771626613401,13.06292636,84.479,84.431,13.89004858]
[1771626613603,3.58308405,84.48,84.421,13.89004858]
[1771626613801,13.06292636,84.479,84.434,10.6623]
[1771626614001,11.88178332,84.516,84.418,13.89004858]
[1771626614002,16.64601041,84.46,84.418,13.89004858]
[1771626614404,13.06292636,84.459,84.418,13.89004858]
[1771626615515,13.06292636,84.459,84.418,24.55434858]
[1771626616515,13.06292636,84.459,84.41,3.58308405]
[1771626616516,13.06292636,84.473,84.425,13.89004858]
[1771626616906,13.06292636,84.473,84.431,13.89004858]
[1771626617109,13.06292636,84.486,84.431,13.89004858]
[1771626618818,13.06292636,84.486,84.432,10.6626]
[1771626619119,13.06292636,84.486,84.432,24.55264858]
[1771626619309,13.06292636,84.486,84.433,13.89004858]
[1771626620319,3.58988368,84.48,84.433,13.89004858]
[1771626621520,16.65281004,84.48,84.433,13.89004858]
[1771626621911,3.58988368,84.5,84.451,13.89004858]
[1771626622114,3.58988368,84.5,84.461,13.89004858]
[1771626622315,3.58988368,84.5,84.407,249.82674509]
[1771626622316,13.06292636,84.499,84.448,13.89004858]
[1771626622511,13.06292636,84.499,84.451,10.6602]
[1771626622712,13.06292636,84.499,84.451,24.55024858]
[1771626623117,3.58988368,84.51,84.462,13.89004858]
[1771626623321,13.06292636,84.513,84.462,13.89004858]
[1771626624230,13.06292636,84.513,84.47,3.58988368]
[1771626625831,13.06292636,84.513,84.473,10.6573]
[1771626629531,13.06292636,84.513,84.482,10.6562]
[1771626630529,13.06292636,84.529,84.482,10.6562]
[1771626631632,3.58988368,84.54,84.487,13.89004858]
[1771626631933,13.06292636,84.543,84.491,13.89004858]
[1771626632138,10.6479,84.549,84.491,13.89004858]
[1771626632139,13.06292636,84.539,84.491,13.89004858]
[1771626632741,13.06292636,84.539,84.493,10.6548]
[1771626633840,13.06292636,84.539,84.493,24.54484858]
[1771626639147,13.06292636,84.539,84.494,13.69062123]
[1771626641142,3.58988368,84.54,84.495,10.6546]
[1771626641343,3.58988368,84.54,84.496,13.69062123]
[1771626641841,13.83137601,84.539,84.496,13.69062123]
[1771626642544,13.83137601,84.539,84.499,10.6541]
[1771626642845,13.83137601,84.539,84.5,13.69062123]
[1771626646141,3.58988368,84.51,84.478,13.69062123]
[1771626647945,12.11857564,84.568,84.462,13.69062123]
[1771626647946,13.83137601,84.499,84.462,13.69062123]
[1771626650445,3.58988368,84.49,84.455,10.6596]
[1771626651341,17.42125969,84.49,84.455,10.6596]
[1771626654347,8.368e-05,84.49,84.456,13.69062123]
[1771626654548,3.58988368,84.52,84.472,13.69062123]
[1771626654750,17.42125969,84.52,84.472,13.69062123]
[1771626654948,13.83137601,84.519,84.472,13.69062123]
[1771626655744,13.83137601,84.519,84.476,10.657]
[1771626657147,13.83137601,84.519,84.476,24.34762123]
[1771626657353,13.83137601,84.519,84.479,13.69062123]
[1771626658747,13.83137601,84.519,84.486,10.6557]
[1771626659052,13.83137601,84.519,84.479,13.69062123]
[1771626659347,13.83137601,84.509,84.467,13.69062123]
[1771626660252,13.83137601,84.509,84.467,24.34872123]
[1771626660648,13.83137601,84.509,84.455,13.69062123]
[1771626660854,13.83137601,84.499,84.459,10.6591]
[1771626662854,13.83137601,84.499,84.465,10.6584]
[1771626663059,3.58988368,84.52,84.466,13.69062123]
[1771626663361,3.58988368,84.52,84.471,13.69062123]
[1771626663761,24.48217601,84.526,84.483,10.6561]
[1771626663955,24.48217601,84.526,84.47,3.58988368]
[1771626663956,13.83137601,84.526,84.484,13.69062123]
[1771626665764,13.83137601,84.526,84.487,10.6556]
[1771626668166,13.83137601,84.526,84.489,10.6554]
[1771626669963,13.83137601,84.526,84.489,24.33688599]
[1771626675572,13.83137601,84.526,84.49,13.68148599]
[1771626678074,13.83137601,84.526,84.491,10.6551]
[1771626678374,178.77342038,84.559,84.492,13.68148599]
[1771626678375,14.20818455,84.538,84.492,13.68148599]
[1771626679171,14.20818455,84.57,84.513,11.03334426]
[1771626679373,14.20818455,84.57,84.521,13.68148599]
[1771626679675,3.58988368,84.58,84.531,13.68148599]
[1771626680467,3.58988368,84.59,84.531,13.68148599]
[1771626680665,3.58988368,84.59,84.537,13.68148599]
[1771626680871,14.20818455,84.594,84.542,11.03334426]
[1771626681071,14.20818455,84.594,84.543,13.68148599]
[1771626681464,14.20818455,84.594,84.551,13.68148599]
[1771626681668,14.20818455,84.606,84.562,13.68148599]
[1771626682778,14.20818455,84.606,84.565,10.6457]
[1771626683273,3.57878213,84.61,84.566,13.68148599]
[1771626683476,14.20818455,84.619,84.568,13.68148599]
[1771626683671,11.01489379,84.651,84.568,13.68148599]
[1771626683672,3.57878213,84.61,84.568,13.68148599]
[1771626684075,14.20818455,84.609,84.568,13.68148599]
[1771626689982,14.20818455,84.609,84.569,10.6453]
[1771626690178,3.57878213,84.63,84.571,13.68148599]
[1771626690785,17.78696668,84.63,84.571,13.68148599]
[1771626691088,14.20818455,84.609,84.561,13.68148599]
[1771626692890,3.57878213,84.61,84.564,13.68148599]
[1771626693187,14.20818455,84.619,84.564,13.68148599]
[1771626693777,14.20818455,84.619,84.568,13.68148599]
[1771626693980,14.20818455,84.614,84.549,13.68148599]
[1771626694180,21.2699,84.652,84.549,13.68148599]
[1771626694181,14.20818455,84.589,84.549,13.68148599]
[1771626695587,17.78696668,84.58,84.542,10.6487]
[1771626701087,17.78696668,84.58,84.55,10.6476]
[1771626701288,14.20818455,84.58,84.55,10.6476]
[1771626702395,17.78696668,84.58,84.55,10.6476]
[1771626702993,17.78696668,84.58,84.543,14.47868916]
[1771626704395,15.07881866,84.567,84.522,10.6512]
[1771626704599,3.57878213,84.56,84.521,14.47868916]
[1771626705688,3.57878213,84.56,84.529,10.6503]
[1771626712097,3.57878213,84.57,84.538,14.47868916]
[1771626712306,15.07881866,84.578,84.538,14.47868916]
[1771626713705,15.07881866,84.578,84.539,10.649]
[1771626716696,15.07881866,84.578,84.54,14.47868916]
[1771626716896,15.07881866,84.589,84.54,14.47868916]
[1771626717704,15.07881866,84.587,84.543,14.47868916]
[1771626718207,15.07881866,84.587,84.544,10.6485]
[1771626720516,3.57878213,84.58,84.544,10.6485]
[1771626721312,15.07881866,84.587,84.544,10.6485]
[1771626723807,15.07881866,84.587,84.544,25.12718916]
[1771626724012,15.07881866,84.587,84.546,25.12678916]
[1771626729718,3.57878213,84.58,84.546,25.12678916]
[1771626732917,14.75146927,84.569,84.526,10.92308526]
[1771626733222,14.75146927,84.569,84.525,14.37871978]
[1771626733921,3.57878213,84.58,84.535,14.37871978]
[1771626734221,14.75146927,84.581,84.535,14.37871978]
[1771626735424,14.75146927,84.581,84.53,3.57878213]
[1771626735425,14.75146927,84.581,84.548,14.37871978]
[1771626740924,3.57878213,84.59,84.548,14.37871978]
[1771626741126,14.75146927,84.591,84.548,14.37871978]
[1771626741326,3.57878213,84.6,84.548,14.37871978]
[1771626741529,14.75146927,84.599,84.548,14.37871978]
[1771626742621,14.75146927,84.612,84.565,14.37871978]
[1771626742827,14.75146927,84.609,84.565,14.37871978]
[1771626743717,14.75146927,84.609,84.566,10.6456]
[1771626743922,14.75146927,84.609,84.571,14.37871978]
[1771626744728,14.75146927,84.609,84.577,14.37871978]
[1771626747928,3.58029681,84.62,84.577,14.37871978]
[1771626748133,14.75146927,84.619,84.58,14.37871978]
[1771626749932,14.75146927,84.619,84.586,14.37871978]
[1771626750236,14.75146927,84.635,84.586,14.37871978]
[1771626753135,14.75146927,84.629,84.586,14.37871978]
[1771626761333,14.12365225,84.655,84.607,14.32595013]
[1771626761529,14.12365225,84.649,84.607,14.32595013]
[1771626762734,14.12365225,84.629,84.591,14.32595013]
[1771626764741,14.12365225,84.644,84.602,14.32595013]
[1771626765243,3.58029681,84.64,84.602,14.32595013]
[1771626765542,14.12365225,84.639,84.602,14.32595013]
[1771626766842,14.12365225,84.649,84.607,14.32595013]
[1771626768544,3.58029681,84.65,84.608,14.32595013]
[1771626769433,14.12365225,84.676,84.608,14.32595013]
[1771626769635,14.12365225,84.699,84.65,17.90624694]
[1771626769835,3.58029681,84.69,84.63,3.58029681]
[1771626770038,14.12365225,84.689,84.631,14.32595013]
[1771626770245,14.12365225,84.701,84.651,14.32595013]
[1771626770838,3.58029681,84.71,84.661,14.32595013]
[1771626771041,14.12365225,84.709,84.661,14.32595013]
[1771626771438,14.12365225,84.689,84.645,14.32595013]
[1771626771836,14.12365225,84.689,84.646,10.6356]
[1771626772044,14.12365225,84.709,84.651,14.32595013]
[1771626772340,14.12365225,84.699,84.651,14.32595013]
[1771626772737,14.12365225,84.689,84.651,14.32595013]
[1771626773138,14.12365225,84.689,84.622,14.32595013]
[1771626773338,14.12365225,84.689,84.55,202.12231031]
[1771626773339,14.12365225,84.659,84.608,10.92308526]
[1771626773645,3.58029681,84.66,84.602,14.32595013]
[1771626773848,3.58029681,84.66,84.556,21.95779984]
[1771626773849,14.12365225,84.662,84.611,14.32595013]
[1771626774644,14.12365225,84.662,84.613,10.6397]
[1771626774951,14.12365225,84.662,84.614,14.32595013]
[1771626775451,3.58029681,84.66,84.614,14.32595013]
[1771626776653,3.58029681,84.65,84.614,14.32595013]
[1771626776846,14.12365225,84.659,84.614,14.32595013]
[1771626779952,14.12365225,84.659,84.619,10.6389]
[1771626781148,3.58029681,84.67,84.623,14.32595013]
[1771626782050,17.70394906,84.67,84.623,14.32595013]
[1771626782352,3.58029681,84.66,84.623,14.32595013]
[1771626782956,14.12365225,84.669,84.623,14.32595013]
[1771626784355,14.12365225,84.669,84.625,10.6382]
[1771626785154,14.12365225,84.669,84.625,24.96415013]
[1771626786156,3.58029681,84.68,84.628,14.32595013]
[1771626787756,3.58029681,84.68,84.637,14.71455623]
[1771626789854,3.58029681,84.68,84.638,10.6366]
[1771626790054,3.58029681,84.68,84.639,14.71455623]
[1771626790257,3.58029681,84.69,84.639,14.71455623]
[1771626790557,3.58029681,84.69,84.641,14.71455623]
[1771626791356,14.35420024,84.694,84.657,10.6342]
[1771626791556,14.35420024,84.694,84.657,25.34875623]
[1771626791756,181.98699461,84.706,84.604,486.55476652]
[1771626791757,17.93449705,84.67,84.627,14.71455623]
[1771626791952,3.58029681,84.66,84.627,14.71455623]
[1771626792157,17.93449705,84.66,84.619,10.639]
[1771626792356,17.93449705,84.66,84.62,14.71455623]
[1771626792557,14.35420024,84.66,84.62,14.71455623]
[1771626793557,3.58029681,84.65,84.613,10.6397]
[1771626793756,14.35420024,84.65,84.607,14.71455623]
[1771626793953,17.93449705,84.65,84.606,10.6407]
[1771626795758,3.58029681,84.66,84.615,14.71455623]
[1771626796155,14.35420024,84.663,84.615,14.71455623]
[1771626796461,3.58029681,84.66,84.615,14.71455623]
[1771626796661,3.58029681,84.66,84.619,10.639]
[1771626799863,17.93449705,84.66,84.619,10.639]
[1771626801864,17.92897134,84.66,84.619,10.639]
[1771626812078,17.92897134,84.66,84.622,10.6386]
[1771626816782,14.35420024,84.66,84.622,10.6386]
[1771626817777,15.27521289,84.658,84.61,10.90919302]
[1771626818074,15.27521289,84.649,84.604,464.59696668]
[1771626818478,15.27521289,84.649,84.61,10.6401]
[1771626827089,3.5747711,84.65,84.611,14.91648342]
[1771626827286,14.13159192,84.66,84.614,14.91648342]
[1771626827584,14.13159192,84.66,84.604,464.59696668]
[1771626827585,14.13159192,84.682,84.621,14.91648342]
[1771626827791,14.13159192,84.682,84.636,14.91648342]
[1771626828688,14.13159192,84.682,84.637,25.55328342]
[1771626829390,14.13159192,84.682,84.64,10.6364]
[1771626829591,236.36,84.705,84.641,14.91648342]
[1771626829592,14.13159192,84.694,84.641,14.91648342]
[1771626830692,14.13159192,84.694,84.649,25.55168342]
[1771626831993,14.13159192,84.694,84.65,14.91648342]
[1771626832799,14.13159192,84.727,84.65,14.91648342]
[1771626832989,6.132e-05,84.737,84.69,14.91648342]
[1771626833185,6.132e-05,84.737,84.69,18.49125452]
[1771626833385,6.132e-05,84.737,84.69,14.91648342]
[1771626833890,6.132e-05,84.737,84.691,14.91648342]
[1771626835793,6.132e-05,84.737,84.695,14.91648342]
[1771626836593,6.132e-05,84.737,84.696,10.6293]
[1771626836793,6.132e-05,84.737,84.697,14.91648342]
[1771626839600,6.132e-05,84.737,84.7,14.91648342]
[1771626840894,3.5747711,84.73,84.67,3.5747711]
[1771626841092,17.70636302,84.73,84.671,14.91648342]
[1771626841293,17.70636302,84.73,84.69,14.91648342]
[1771626842096,142.23581474,84.755,84.693,14.91648342]
[1771626842297,11.01570809,84.81,84.629,496.4304]
[1771626842298,80.36567309,84.779,84.73,3.5747711]
[1771626842509,14.7313203,84.847,84.671,165.3941]
[1771626842510,80.36567309,84.789,84.682,165.3725]
[1771626842795,80.36567309,84.776,84.72,3.5747711]
[1771626843298,3.5747711,84.77,84.72,3.5747711]
[1771626843498,80.36567309,84.776,84.72,3.5747711]
[1771626843906,80.0479204,84.769,84.691,10.86669241]
[1771626844105,3.5747711,84.76,84.7,3.5747711]
[1771626844306,83.61756245,84.75,84.703,10.6284]
[1771626844808,3.5747711,84.76,84.713,10.6271]
[1771626845609,3.5747711,84.77,84.724,10.6257]
[1771626846211,3.5747711,84.78,84.724,10.6257]
[1771626846605,3.5747711,84.78,84.734,10.6245]
[1771626847618,71.41693259,84.792,84.747,10.6229]
[1771626847819,3.5747711,84.79,84.747,10.6229]
[1771626848014,75.00391503,84.79,84.747,10.6229]
[1771626848623,3.5747711,84.78,84.747,10.6229]
[1771626849617,3.5747711,84.78,84.736,10.6243]
[1771626849823,75.28282164,84.78,84.72,3.5747711]
[1771626850020,71.70805054,84.759,84.7,3.5747711]
[1771626850819,71.70805054,84.759,84.719,10.6264]
[1771626851725,71.70805054,84.759,84.728,10.6252]
[1771626852319,3.5747711,84.76,84.728,10.6252]
[1771626852525,3.5747711,84.77,84.72,3.5747711]
[1771626853033,3.5747711,84.78,84.72,3.5747711]
[1771626853230,3.5747711,84.78,84.737,10.6241]
[1771626853629,3.5747711,84.78,84.72,3.5747711]
[1771626853834,3.5747711,84.77,84.726,10.6255]
[1771626854429,66.02430929,84.77,84.726,10.6255]
[1771626855325,66.02430929,84.77,84.71,3.5747711]
[1771626855530,66.02430929,84.77,84.735,10.6245]
[1771626856032,43.99563819,84.77,84.72,3.5747711]
[1771626856429,47.57040929,84.77,84.72,3.5747711]
[1771626857126,2.05323059,84.815,84.689,21.2605]
[1771626857127,3.5747711,84.76,84.689,21.2605]
[1771626857326,3.5747711,84.75,84.7,3.5747711]
[1771626858734,3.5747711,84.75,84.721,10.6261]
[1771626863933,3.56657201,84.75,84.721,10.6261]
[1771626866538,52.90669239,84.749,84.69,3.56657201]
[1771626867135,3.56657201,84.73,84.68,3.56657201]
[1771626867333,56.42098293,84.71,84.656,10.86669241]
[1771626867638,3.56657201,84.7,84.65,3.56657201]
[1771626867831,52.85441092,84.71,84.64,3.56657201]
[1771626868031,3.56657201,84.7,84.64,3.56657201]
[1771626868239,3.56657201,84.68,84.652,10.6348]
[1771626868539,52.85441092,84.69,84.652,10.6348]
[1771626868835,3.56657201,84.68,84.652,10.6348]
[1771626870240,56.42098293,84.69,84.652,10.6348]
[1771626871946,55.72360174,84.67,84.622,10.85818794]
[1771626872139,55.72360174,84.67,84.614,10.85818794]
[1771626872337,52.15702973,84.67,84.61,3.56657201]
[1771626872637,3.56657201,84.66,84.606,10.85818794]
[1771626872834,52.15702973,84.67,84.622,10.6386]
[1771626873141,55.72360174,84.67,84.61,3.56657201]
[1771626873842,3.56657201,84.68,84.62,3.56657201]
[1771626874034,3.56657201,84.68,84.63,3.56657201]
[1771626874234,3.56657201,84.68,84.62,3.56657201]
[1771626875343,3.56657201,84.68,84.634,10.637]
[1771626875843,43.26807033,84.679,84.634,10.637]
[1771626879137,43.26807033,84.679,84.642,10.6361]
[1771626883443,43.26807033,84.679,84.633,10.6372]
[1771626884434,43.20811376,84.695,84.641,10.6362]
[1771626884635,3.56657201,84.69,84.641,10.6362]
[1771626885035,46.77468577,84.69,84.641,10.6362]
[1771626888246,43.2317691,84.679,84.631,10.6374]
[1771626888946,3.56657201,84.64,84.604,384.19450607]
[1771626889142,3.56657201,84.64,84.55,21.95779984]
[1771626889143,16.03825118,84.639,84.581,17.15343018]
[1771626889342,3.56657201,84.63,84.588,10.6429]
[1771626889939,3.56657201,84.62,84.581,17.15343018]
[1771626890144,16.03825118,84.619,84.561,17.15343018]
[1771626891051,16.03825118,84.609,84.561,17.15343018]
[1771626891350,16.03825118,84.599,84.545,17.15343018]
[1771626892246,16.03825118,84.599,84.548,10.6479]
[1771626895044,3.56657201,84.59,84.548,10.6479]
[1771626895250,19.60482319,84.59,84.548,10.6479]
[1771626895750,19.60482319,84.59,84.545,17.15343018]
[1771626895751,3.56657201,84.58,84.545,17.15343018]
[1771626896255,19.60482319,84.59,84.545,17.15343018]
[1771626896746,3.56657201,84.56,84.515,17.15343018]
[1771626896947,19.60482319,84.57,84.515,17.15343018]
[1771626897646,19.60482319,84.57,84.519,17.15343018]
[1771626898049,19.60482319,84.57,84.52,3.56657201]
[1771626900250,16.03825118,84.57,84.52,20.72000219]
[1771626901748,16.03825118,84.57,84.521,10.6513]
[1771626902654,16.03825118,84.57,84.526,10.6507]
[1771626903352,16.03825118,84.599,84.54,3.56657201]
[1771626903551,16.03825118,84.599,84.541,17.15343018]
[1771626903853,16.03825118,84.599,84.552,17.15343018]
[1771626904049,16.03825118,84.609,84.561,17.15343018]